Cogmind - Beta 13 @@@ ROGUE MODE // 2024.03.26 @ 01:44:08 Player: f_ Result: Destroyed by D-53 Grenadier with Mini Grenade Launcher Performance ------------- Evolutions (1) 500 Regions Visited (4) 800 Robots Destroyed (92) 460 Value Destroyed (1695) 1695 Prototype IDs (3) 60 Alien Tech Used (0) 0 Bonus (257) 257 TOTAL SCORE: 3772 Bonus ------- High Alert Combat Kills 183 Follower Combat Kills 74 Cogmind --------- Core Integrity 0/400 Matter 255/300 Energy 263/265 System Corruption 3% Temperature Cool (0) Movement Rolling (95) Ox1 Location -9/Mines Parts ------- > --- POWER (1) -------- Improved Ion Engine > --- PROPULSION (2) --- Wheel Wheel > --- UTILITY (4) ------ Medium Storage Unit Signal Interpreter Core Shielding Propulsion Shielding > --- WEAPON (2) ------- Beam Rifle > --- INVENTORY (10) --- Ion Engine Improved Ion Engine Wheel Hacking Suite EM Shotgun Spread Laser Particle Cannon Light Cannon Improved Light Cannon Hammer Peak State ------------ > --- POWER ------------ (None) > --- PROPULSION ------- Light Treads Improved Treads > --- UTILITY ---------- Small Storage Unit Weapon Shielding Light Armor Plating > --- WEAPON ----------- Field Laser Improved Assault Rifle > --- INVENTORY -------- Improved Ion Engine Signal Interpreter Hacking Suite Beam Rifle Spread Laser Light Cannon Improved Light Cannon Grenade Launcher [Rating: 13] Favorites ----------- Power Improved Ion Engine Engine Improved Ion Engine Propulsion Wheel Treads Improved Treads Leg Aluminum Leg Wheel Wheel Utility Small Storage Unit Device Sensor Array Storage Small Storage Unit Processor Signal Interpreter Protection Weapon Shielding Weapon Field Laser Energy Gun Field Laser Ballistic Gun Improved Assault Rifle Ballistic Cannon Light Cannon Launcher Grenade Launcher Impact Weapon Hammer Build | -11 -10 -10 -9 -9 ------- Run | Yrd Mat Min Mat Min Slots Evolved 2 | . . . 2 . Power . | . . . . . Propulsion . | . . . . . Utility 2 | . . . 2 . Weapon . | . . . . . Parts Attached 45 | 6 3 4 31 1 Power 6 | 1 . 1 4 . Engine 6 | 1 . 1 4 . Core . | . . . . . Reactor . | . . . . . Propulsion 14 | 2 2 1 9 . Treads 2 | . . . 2 . Leg 1 | . . . 1 . Wheel 11 | 2 2 1 6 . Hover . | . . . . . Flight . | . . . . . Utility 9 | 1 1 . 7 . Device 1 | . 1 . . . Storage 2 | 1 . . 1 . Processor 1 | . . . 1 . Hackware . | . . . . . Protection 5 | . . . 5 . Artifact . | . . . . . Weapon 16 | 2 . 2 11 1 Energy Gun 8 | 2 . 1 5 . Energy Cannon . | . . . . . Ballistic Gun 1 | . . . 1 . Ballistic Cannon 2 | . . 1 1 . Launcher 1 | . . . . 1 Special Weapon . | . . . . . Impact Weapon 4 | . . . 4 . Slashing Weapon . | . . . . . Piercing Weapon . | . . . . . Special Melee Weapon . | . . . . . Unidentified Prototypes 1 | . . . 1 . Corrupted Parts 1 | . . . 1 . System Corruption 2 | . . . 2 . Parts Lost 14 | . . 2 11 1 Power 2 | . . . 2 . Propulsion 5 | . . 1 4 . Utility 4 | . . . 4 . Weapon 3 | . . 1 1 1 Highest Loss Streak 3 | . . 2 3 1 To Critical Strikes . | . . . . . Average Slot Usage (%) 81 | . 92 94 73 98 Engine 10 | . 14 14 8 11 Treads 1 | . . . 2 . Wheel 17 | . 28 25 11 22 Device 3 | . 7 14 . . Storage 12 | . 14 14 11 11 Processor 1 | . . . 2 11 Protection 10 | . . . 16 22 Energy Gun 17 | . 28 25 11 11 Impact Weapon 5 | . . . 8 . Naked Turns . | . . . . . Heaviest Build 25 | 13 14 17 25 25 Greatest Support 43 | 32 32 26 43 20 Greatest Overweight (x) 5 | . . 1 5 1 Average Overweight (x) . | . . . 1 1 Largest Inventory Capacity 10 | 8 8 8 10 10 Average Capacity 8 | 7 8 8 8 10 Most Carried 10 | 2 8 8 10 10 Average Carried 7 | . 7 7 7 10 Final Capacity 10 | 8 8 8 10 10 Final Carried 10 | 1 8 7 10 10 Class Distribution -------------------- 91% | Mutant 8% | Scavenger-Mutant Dominant Class ---------------- Mutant | -10/Materials Mutant | -10/Mines Mutant | -9/Materials Scavenger-Mutant | -9/Mines Resources | -11 -10 -10 -9 -9 ----------- Run | Yrd Mat Min Mat Min Matter Collected 654 | 108 182 30 334 . Remotely . | . . . . . Salvage Created 2749 | . 473 215 2037 24 Parts 195 | . 47 13 132 3 Haulers Intercepted 6 | . 1 . 5 . Recyclers Shooed 6 | . . 1 5 . Parts Field Recycled . | . . . . . Retrieved Matter . | . . . . . Parts Self-Destructed . | . . . . . Prevented . | . . . . . Kills | -11 -10 -10 -9 -9 ------- Run | Yrd Mat Min Mat Min Combat Hostiles Destroyed 58 | . 9 9 35 5 Melee 8 | . . . 8 . Guns 41 | . 9 9 22 1 Cannons 1 | . . . 1 . AOE 4 | . . . . 4 Classes Destroyed 11 | . 9 1 . 1 Worker 11 | . 1 . 10 . Builder 5 | . 1 . 4 . Tunneler 1 | . 1 . . . Hauler 6 | . 1 . 5 . Recycler 2 | . 1 . 1 . Operator 3 | . 1 . 2 . Watcher 7 | . 3 . 4 . Swarmer 26 | . 5 7 10 4 Grunt 20 | . 4 . 16 . Sentry 11 | . . 2 9 . Assembled 1 | . . . . 1 Best Kill Streak 16 | . 6 3 16 10 Combat Bots Only 8 | . 2 3 8 4 Max Kills in Single Turn 2 | . 2 2 1 2 Gunslinging 1 | . . 1 . . Exploded 2 | . . . . 2 Melee 1 | . . . 1 . Uniques/NPCs Destroyed . | . . . . . Combat | -11 -10 -10 -9 -9 -------- Run | Yrd Mat Min Mat Min Hostile Shots Fired 250 | . 37 37 155 21 Missed 72 | . 11 12 45 4 Damage Taken 2109 | . 214 233 1225 437 Core 523 | . 29 75 234 185 Absorbed by Shields . | . . . . . Redirected to Shielding 106 | . . . 52 54 Regen/Repaired (Parts) 86 | . . . 86 . Core Remaining (%) 79 | 100 . 58 . . Volleys Fired 261 | . 61 18 175 7 Largest 2 | . 2 2 2 1 Hottest 126 | . 90 90 126 56 Shots Fired 347 | . 120 35 185 7 Gun 339 | . 120 35 181 3 Cannon 4 | . . . 4 . Launcher 4 | . . . . 4 Special . | . . . . . Kinetic 4 | . . . 4 . Thermal 335 | . 120 35 177 3 Explosive 4 | . . . . 4 Electromagnetic 4 | . . . 4 . Robot Hit Streak 10 | . 8 9 10 5 Robot Miss Streak 4 | . 4 4 3 2 Penetration Max . | . . . . . Secondary Targets 1 | . . 1 . . Max Gunslinging Chain 1 | . . 1 . . Shots Hit Robots 245 | . 66 18 157 4 Core Hits 103 | . 27 10 57 9 Critical Kills 2 | . . . 2 . Critical Parts Destroyed 4 | . . . 4 . Critical Strikes 17 | . 2 3 12 . Burn 11 | . 2 3 6 . Smash 6 | . . . 6 . Melee Attacks 42 | . . . 42 . Impact 42 | . . . 42 . Slashing . | . . . . . Piercing . | . . . . . Sneak Attacks 9 | . . . 9 . Combat Hostiles . | . . . . . Follow-up Attacks . | . . . . . Damage Inflicted 4620 | . 792 215 3234 379 Guns 3141 | . 792 215 2105 29 Cannons 20 | . . . 20 . Explosions 350 | . . . . 350 Melee 1108 | . . . 1108 . Ramming 1 | . . . 1 . Kinetic 20 | . . . 20 . Thermal 3099 | . 792 215 2063 29 Explosive 350 | . . . . 350 Electromagnetic 42 | . . . 42 . Impact 1108 | . . . 1108 . Slashing . | . . . . . Piercing . | . . . . . Highest Corruption 3 | . . . 3 3 Average Corruption 2 | . . . 2 3 Corruption Purged . | . . . . . Corruption Blocked . | . . . . . Effects 12 | . . . 12 . Message Errors 3 | . . . 3 . Matter Fused 1 | . . . 1 . Heat Flow Errors 1 | . . . 1 . Energy Discharges 4 | . . . 4 . Data Loss (major) 1 | . . . 1 . Misfires 2 | . . . 2 . Overload Shots . | . . . . . Overflow Damage 298 | . . . 288 10 Projectiles . | . . . . . Explosions 10 | . . . . 10 Melee 288 | . . . 288 . Knockbacks 4 | . . . 4 . Impact 4 | . . . 4 . Kinetic . | . . . . . Secondary . | . . . . . Self-Inflicted Damage 31 | . . . . 31 Shots 2 | . . . . 2 Rammed 1 | . . . 1 . Targets Rammed 1 | . . . 1 . Kicked . | . . . . . Crushed . | . . . . . Highest Temperature 498 | . 232 184 498 36 Average Temperature 89 | . 79 79 96 20 Received Heat Transfer 441 | . 36 9 396 . Effects 10 | . . . 10 . Shutdowns 2 | . . . 2 . Interference 3 | . . . 3 . Short Circuit 1 | . . . 1 . Damage (minor) 1 | . . . 1 . Damage (major) 3 | . . . 3 . Siege Activations . | . . . . . Robots Corrupted . | . . . . . Combat Hostiles . | . . . . . Parts Fried 10 | . . . 10 . Impact Corruptions 13 | . . . 13 . Robots Melted 1 | . . . 1 . Combat Hostiles 1 | . . . 1 . Parts Melted 14 | . 3 2 9 . Heat Transferred 8129 | . 2243 780 5032 74 Parts Sabotaged . | . . . . . Parts Stolen . | . . . . . Parts Stripped . | . . . . . Power Chain Reactions . | . . . . . Alert | -11 -10 -10 -9 -9 ------- Run | Yrd Mat Min Mat Min Peak Influence 854 | . 182 328 854 414 Initial 288 | . . 66 49 288 Average 310 | . 95 150 429 400 Maximum Alert Level 3 | . . 1 3 2 Low Security (%) 58 | 100 100 78 40 . Level 1 8 | . . 21 8 22 Level 2 13 | . . . 18 77 Level 3 19 | . . . 32 . Level 4 . | . . . . . Level 5 . | . . . . . High Security . | . . . . . Max Security . | . . . . . Squads Dispatched 10 | . 2 . 8 . Investigation 1 | . . . 1 . Extermination . | . . . . . Reinforcement 7 | . 2 . 5 . Assault 2 | . . . 2 . Garrison . | . . . . . Intercept . | . . . . . Searches Triggered . | . . . . . Construction Impeded . | . . . . . Haulers Reinforced . | . . . . . Active Scanning Responses . | . . . . . Cargo Convoy Interrupts . | . . . . . Stealth | -11 -10 -10 -9 -9 --------- Run | Yrd Mat Min Mat Min Distress Signals 3 | . 1 . 2 . Communications Jammed . | . . . . . Distress Signals . | . . . . . Times Spotted 104 | . 21 13 58 12 Peak Tracking Total 10 | . 4 3 10 8 Tactical Retreats 5 | . 3 1 1 . Traps | -11 -10 -10 -9 -9 ------- Run | Yrd Mat Min Mat Min Traps Triggered 2 | . . . 2 . Indirectly . | . . . . . Trap Hack Attempts . | . . . . . Triggered . | . . . . . Disarmed . | . . . . . Reprogrammed . | . . . . . Reused . | . . . . . Traps Extracted . | . . . . . Installed . | . . . . . Triggered . | . . . . . Machines | -11 -10 -10 -9 -9 ---------- Run | Yrd Mat Min Mat Min Machines Disabled 2 | . . . 2 . Max in Single Turn 1 | . . . 1 . Machines Repaired . | . . . . . Machines Dismantled . | . . . . . Machines Sabotaged . | . . . . . Overloaded Fab Kills . | . . . . . Hacking | -11 -10 -10 -9 -9 --------- Run | Yrd Mat Min Mat Min Machines Accessed 6 | . 2 . 4 . Terminals 4 | . 2 . 2 . Fabricators . | . . . . . Repair Stations 1 | . . . 1 . Recycling Units 1 | . . . 1 . Scanalyzers . | . . . . . Garrison Access . | . . . . . Total Hacks 10 | . 2 . 8 . Successful 9 | . 2 . 7 . Failed 1 | . . . 1 . Catastrophic . | . . . . . Database Lockouts . | . . . . . Manual . | . . . . . Terminals 5 | . 2 . 3 . Fabricators . | . . . . . Repair Stations 3 | . . . 3 . Recycling Units 2 | . . . 2 . Scanalyzers . | . . . . . Garrison Access . | . . . . . Terminal Hacks 5 | . 2 . 3 . Prototype ID Bank 2 | . 2 . . . Alert Level 1 | . . . 1 . Locate Traps 1 | . . . 1 . Maintenance Status 1 | . . . 1 . Fabricator Hacks . | . . . . . Repair Station Hacks 2 | . . . 2 . Scan Component 1 | . . . 1 . Repair 1 | . . . 1 . Recycling Unit Hacks 2 | . . . 2 . Report Inventory 1 | . . . 1 . Retrieve Components 1 | . . . 1 . Scanalyzer . | . . . . . Garrison Access Hacks . | . . . . . Unauthorized Hacks . | . . . . . Terminals . | . . . . . Fabricators . | . . . . . Repair Stations . | . . . . . Recycling Units . | . . . . . Scanalyzers . | . . . . . Garrison Access . | . . . . . Data Cores Recovered . | . . . . . Used . | . . . . . Hacking Detections 2 | . 1 . 1 . Full Trace Events . | . . . . . Feedback Events . | . . . . . Feedback Blocked . | . . . . . Robot Schematics Acquired . | . . . . . Robots Built . | . . . . . Authchips . | . . . . . Time . | . . . . . Total Robot Build Rating . | . . . . . Part Schematics Acquired . | . . . . . Parts Built . | . . . . . Authchips . | . . . . . Time . | . . . . . Total Part Build Rating . | . . . . . Parts Repaired 1 | . . . 1 . Time 26 | . . . 26 . Parts Recycled . | . . . . . Recycled Matter . | . . . . . Retrieved Matter . | . . . . . Retrieved Components 3 | . . . 3 . Parts Scanalyzed . | . . . . . Part Schematics Acquired . | . . . . . Parts Damaged . | . . . . . Bothacking | -11 -10 -10 -9 -9 ------------ Run | Yrd Mat Min Mat Min Used RIF Installer . | . . . . . Robots Hacked . | . . . . . Non-combat . | . . . . . Combat . | . . . . . Robot Hacks Applied . | . . . . . Relay Couplers Released . | . . . . . Fabnet Peak Effective % . | . . . . . Robots Rewired . | . . . . . Allies Hacked . | . . . . . Hacks Repelled . | . . . . . Allies | -11 -10 -10 -9 -9 -------- Run | Yrd Mat Min Mat Min Total Allies 5 | . . 3 . 2 Largest Group 3 | . . 3 . 2 Highest-Rated Group 52 | . . 40 . 52 Highest-Rated Ally 31 | . . 16 . 31 Total Orders . | . . . . . Ally Attacks 22 | . . 20 . 2 Total Damage 200 | . . 179 . 21 Kills 4 | . . 4 . . Allies Corrupted . | . . . . . Allies Melted . | . . . . . Intel | -11 -10 -10 -9 -9 ------- Run | Yrd Mat Min Mat Min Robot Analysis Total . | . . . . . Derelict Logs Recovered 3 | . . 2 . 1 Drone Launches . | . . . . . Drone Recoveries . | . . . . . Exploration | -11 -10 -10 -9 -9 ------------- Run | Yrd Mat Min Mat Min Turns Passed 3356 | 44 745 463 2002 102 Spaces Moved 2132 | 33 542 379 1087 91 Core 67 | 3 . . 64 . Treads 62 | . . . 62 . Legs 35 | . . . 35 . Wheels 1968 | 30 542 379 926 91 Hover . | . . . . . Flight . | . . . . . Fastest Speed 50 | 50 90 90 80 95 Average Speed 103 | 95 91 91 113 95 Slowest Speed 300 | 100 100 95 300 95 Overloaded Moves . | . . . . . Propulsion Burnouts . | . . . . . Robots Hopped . | . . . . . Cave-ins Triggered . | . . . . . Exploration Rate (%) 53 | 3 72 85 71 37 Regions Visited 4 Branch Regions 2 Pre-discovered Areas 1 | . . 1 . . Known Exits Taken 1 | . . . 1 . Unknown Exits Taken 3 | 1 1 1 . . Scrap Searched 1 | . . 1 . . Spaces Dug . | . . . . . Terrain Destroyed 31 | . . . . 31 Melee . | . . . . . Projectile . | . . . . . AOE 31 | . . . . 31 Terrain Rammed . | . . . . . Walls Destroyed . | . . . . . Machines Disabled . | . . . . . Actions | -11 -10 -10 -9 -9 --------- Run | Yrd Mat Min Mat Min Total 2873 | 45 671 463 1595 99 Wait 330 | . 49 55 226 . Move 2128 | 32 541 378 1086 91 Hop . | . . . . . Pick Up 46 | 7 11 3 25 . Fast Attach 7 | . 1 1 5 . Attach 27 | 6 . 1 20 . Detach . | . . . . . Swap 11 | . 2 2 6 1 Drop 20 | . 6 5 9 . Fire 261 | . 61 18 175 7 Melee 42 | . . . 42 . Ram 1 | . . . 1 . Kick . | . . . . . Crush . | . . . . . Escape Stasis . | . . . . . Rewire . | . . . . . Trap . | . . . . . Miscellaneous . | . . . . . Route ------- -11/Scrapyard -10/Materials (discovered 3 exits: *Mat x2 / [*Min]) -10/Mines (discovered 3 exits: *Mat x2 / [*Exi]) -9/Materials (discovered 3 exits: [*Mat x2] / *Min) -9/Mines History --------- Turn | Location | Event 34 | -11/Scrapyard | Discovered new exit (range 12) 45 | -11/Scrapyard | Entered Materials 305 | -10/Materials | Build established: Mutant 473 | -10/Materials | Discovered new exit (range 14) 753 | -10/Materials | Discovered new exit (range 14) 785 | -10/Materials | Discovered new exit (range 5) 790 | -10/Materials | Entered Mines 808 | -10/Mines | Learned location of Storage (-8) 900 | -10/Mines | Discovered new exit (range 2) 960 | -10/Mines | Assisted by bots powering up and referring to "LRC-V3" 1145 | -10/Mines | Learned Materials emergency access door positions 1234 | -10/Mines | Discovered new exit (range 7) 1246 | -10/Mines | Deemed a non-threat by the Exiles lab entrance 1246 | -10/Mines | Discovered new exit (range 5) 1253 | -10/Mines | Entered Materials 1253 | -9/Materials | Evolved 2 slots: Utility x2 1548 | -9/Materials | Repaired Hammer 1915 | -9/Materials | Discovered new exit (range 16) 2048 | -9/Materials | Discovered new exit (range 8) 2127 | -9/Materials | Destroyed 8 combat bots 2177 | -9/Materials | Lost 3 parts (1n2u) 2485 | -9/Materials | Discovered new exit (range 8) 2632 | -9/Materials | Core integrity fell below 50% 3253 | -9/Materials | First assault squad dispatched 3254 | -9/Materials | Identified exit to Mines 3255 | -9/Materials | Entered Mines 3280 | -9/Mines | Learned Materials emergency access door positions 3313 | -9/Mines | Assembled infested the area 3353 | -9/Mines | Core integrity fell below 20% 3357 | -9/Mines | Destroyed by D-53 Grenadier with Mini Grenade Launcher Last Messages --------------- 03315_ K-01 Serf collects debris. 03324_ D-53 Grenadier unfolds itself. 03325_ R-06 Scavenger destroyed. 03328_ The unstable cave ceiling collapses. 03328_ 99-YKR(g) destroyed. 03328_ T-07 Excavator destroyed. 03328_ as-14526 sneak attacks. 03328_ R-06 Scavenger system corrupted by crushing effect. 03328_ R-06 Scavenger system corrupted by crushing effect. 03329_ R-06 Scavenger system terminally corrupted. 03331_ The unstable cave ceiling collapses. 03338_ Knocked back. 03345_ as-14526 destroyed. 03349_ The unstable cave ceiling collapses. 03349_ Grenade Launcher destroyed. 03349_ Laser Drill disabled. 03352_ The unstable cave ceiling collapses. Map ----- +----------------------------------------------------+ | ?????????????# # ##??????????????????????? | | ?????????????? #???????????????????????? | | ???????????????# ##???????????????????????? | | ???????????????# ##??????????????????????? | | ???????????????#% ####???????????????????? | | ?????????????###! ##??????????????????? | | ?????????????# #??????????????????? | | ?????? # ??????????????????? | | ???? ### ?????????????????? | | ??? " ## ### # ?????????????????? | | ???## ???######??# ?????????????????? | | ?????#?????????????? # #????????????????? | | ?????????????????????# #????????????????? | | ?????????????????????# ##???????????????? | | ?????????????????????# ##??????????????? | | ???????????????###????# dd ######?????????? | | ??????????????## ????## #?????????? | | ??????????????# ???## #?????????? | | ?????????????? #### #?????????? | | ?????????????? #?????????? | | ?????????????? #?????????? | | ???????????????? ## #?????????? | | ???????????????? ??# ##?????????? | | ????????????????????# #??????????? | | ????????????????????# #??????????? | | ????????????????????## @ ##??????????? | | ?????????????????????# #???????????? | | ?????????????????????#### ##???????????? | | ????????????????????????## ##????????????? | | ?????????????????????????######?????????????? | | ????????????????????????????????????????????? | | ????????????????????????????????????????????? | | ????????????????????????????????????????????? | | ????????????????????????????????????????????? | | ????????????????????????????????????????????? | | ????????????????????????????????????????????? | | ????????????????????????????????????????????? | | ????????????????????????????????????????????? | | ????????????????????????????????????????????? | | ????????????????????????????????????????????? | | ????????????????????????????????????????????? | | ????????????????????????????????????????????? | | | | | | | | | | | | | | | | | +----------------------------------------------------+ Best States ------------- Heat Dissipation 28 Energy Generation 14 Energy Capacity 280 Matter Stores 300 Matter Capacity 300 Sight Range 16 Robot Scan Range 14 Terrain Scan Density 10 Armor Coverage 300 Core Shielding 20 Propulsion Shielding 33 Weapon Shielding 33 Evasion (%) 44 Recoil Reduction 2 Item Schematics ----------------- None Robot Schematics ------------------ None Fabricated ------------ Nothing Alien Tech Used ----------------- None Achievements -------------- None Challenges ------------ None Game ------ Seed AluminumRestorationBooster Manual? 0 Play Time 00:34:39 Cumulative 73.2 hours Start 2024.03.26 @ 01:09:25 End 2024.03.26 @ 01:44:08 Sessions 1 Manual Loads 0 Difficulty Rogue Special Mode None Game No. 68 Rogue 66 Adventurer 0 Explorer 2 Win Type - Total 0 Types 0/0/0/0/0/0/0/0/0 Lore% 21 Gallery% 34 Achievement% 22 Wizard Run 0 Options --------- Layout 1 ASCII 0 Keyboard 0 Movement Mouse Keybinds 0 Fullscreen 2 Font 48/Tamsyn Map View 50x35 Zoom Use 0% Tactical HUD 1 Map Filters NONE Filters NONE Steam 1 RUN: 3ac6214c-c74e-4feb-b9fe-feabc896358e